fUST/lending_fUST_20251028
["ID","MTS","AMOUNT","RATE_DAILY","PERIOD"]
[392538181,1761635437769,-500.0,0.00021917,2]
[392538182,1761635437779,-918.7,0.00021917,2]
[392538183,1761635437788,-500.0,0.00021917,2]
[392538184,1761635437798,-649.38,0.00021917,2]
[392538185,1761635437807,-500.0,0.00021917,2]
[392538186,1761635437816,-870.92,0.00021917,2]
[392538187,1761635437827,-500.0,0.00021917,2]
[392538188,1761635437836,-500.0,0.00021917,2]
[392538189,1761635437845,-500.0,0.00021917,2]
[392538191,1761635437855,-730.78,0.00021917,2]
[392538193,1761635437864,-2634.03,0.00021917,2]
[392538195,1761635437873,-500.0,0.00021917,2]
[392538196,1761635437882,-1269.87,0.00021917,2]
[392538197,1761635437891,-500.0,0.00021917,2]
[392538198,1761635437900,-500.0,0.00021917,2]
[392538199,1761635437909,-1967.43,0.00021917,2]
[392538200,1761635437918,-500.0,0.00021917,2]
[392538201,1761635437927,-650.12,0.00021917,2]
[392538202,1761635437936,-500.0,0.00021917,2]
[392538203,1761635437945,-500.0,0.00021917,2]
[392538204,1761635437954,-512.74,0.00021917,2]
[392538205,1761635437963,-965.61,0.00021917,2]
[392538207,1761635437972,-500.0,0.00021917,2]
[392538208,1761635437982,-500.0,0.00021917,2]
[392538210,1761635437991,-500.0,0.00021917,2]
[392538212,1761635438000,-594.65,0.00021917,2]
[392538213,1761635438009,-744.7,0.00021917,2]
[392538214,1761635438018,-500.0,0.00021917,2]
[392538215,1761635438027,-662.78,0.00021917,2]
[392538216,1761635438036,-1987.69,0.00021917,2]
[392538217,1761635438046,-1564.86,0.00021917,2]
[392538218,1761635438058,-500.0,0.00021917,2]
[392538219,1761635438068,-1117.6,0.00021917,2]
[392538220,1761635438077,-500.0,0.00021917,2]
[392538222,1761635438087,-500.0,0.00021917,2]
[392538224,1761635438096,-500.0,0.00021917,2]
[392538225,1761635438105,-500.0,0.00021917,2]
[392538228,1761635438115,-500.0,0.00021917,2]
[392538230,1761635438125,-903.04,0.00021917,2]
[392538232,1761635438134,-2111.37,0.00021917,2]
[392538234,1761635438143,-500.0,0.00021917,2]
[392538235,1761635438153,-543.29,0.00021917,2]
[392538237,1761635438162,-500.0,0.00021917,2]
[392538240,1761635438175,-626.07,0.00021917,2]
[392538241,1761635438184,-500.0,0.00021917,2]
[392538244,1761635438194,-2223.28,0.00021917,2]
[392538246,1761635438203,-500.0,0.00021917,2]
[392538248,1761635438212,-500.0,0.00021917,2]
[392538249,1761635438222,-500.0,0.00021917,2]
[392538252,1761635438231,-2843.76,0.00021917,2]
[392538253,1761635438240,-1289.34,0.00021917,2]
[392538255,1761635438249,-500.0,0.00021917,2]
[392538257,1761635438258,-500.0,0.00021917,2]
[392538259,1761635438267,-500.0,0.00021917,2]
[392538261,1761635438277,-500.0,0.00021917,2]
[392538263,1761635438286,-630.14,0.00021917,2]
[392538265,1761635438296,-500.0,0.00021917,2]
[392538268,1761635438306,-500.0,0.00021917,2]
[392538270,1761635438316,-4652.07,0.00021917,2]
[392538272,1761635438325,-500.0,0.00021917,2]
[392538274,1761635438335,-500.0,0.00021917,2]
[392538276,1761635438344,-500.0,0.00021917,2]
[392538278,1761635438353,-715.08,0.00021917,2]
[392538279,1761635438363,-769.7,0.00021917,2]
[392538281,1761635438372,-500.0,0.00021917,2]
[392538283,1761635438382,-344.79953851,0.00021917,2]
[392538285,1761635438391,-500.0,0.00021917,2]
[392538287,1761635438400,-505.99,0.00021917,2]
[392538289,1761635438409,-3216.82,0.00021917,2]
[392538291,1761635438419,-500.0,0.00021917,2]
[392538293,1761635438428,-551.96177283,0.00021917,2]
[392538296,1761635438437,-500.0,0.00021917,2]
[392538298,1761635438447,-853.88,0.00021917,2]
[392538300,1761635438455,-500.0,0.00021917,2]
[392538301,1761635438465,-500.0,0.00021917,2]
[392538303,1761635438474,-886.63,0.00021917,2]
[392538306,1761635438484,-371.37042725,0.00021917,2]
[392538308,1761635438493,-500.0,0.00021917,2]
[392538310,1761635438502,-500.0,0.00021917,2]
[392538311,1761635438512,-29228.49,0.00021917,2]
[392538313,1761635438524,-2085.69,0.00021917,2]
[392538315,1761635438534,-500.0,0.00021917,2]
[392538317,1761635438543,-551.06,0.00021917,2]
[392538319,1761635438555,-500.0,0.00021917,2]
[392538322,1761635438566,-500.0,0.00021917,2]
[392538324,1761635438575,-500.0,0.00021917,2]
[392538326,1761635438584,-500.0,0.00021917,2]
[392538328,1761635438594,-526.95,0.00021917,2]
[392538330,1761635438603,-500.0,0.00021917,2]
[392538332,1761635438612,-565.2,0.00021917,2]
[392538334,1761635438621,-1012.52,0.00021917,2]
[392538335,1761635438631,-500.0,0.00021917,2]
[392538338,1761635438642,-614.58,0.00021917,2]
[392538339,1761635438652,-500.0,0.00021917,2]
[392538341,1761635438662,-684.26,0.00021917,2]
[392538343,1761635438673,-517.24270481,0.00021917,2]
[392538345,1761635438683,-500.0,0.00021917,2]
[392538347,1761635438694,-500.0,0.00021917,2]
[392538349,1761635438704,-500.0,0.00021917,2]
[392538351,1761635438714,-500.0,0.00021917,2]
[392538353,1761635438724,-500.0,0.00021917,2]
[392538355,1761635438734,-616.88146627,0.00021917,2]
[392538357,1761635438744,-500.0,0.00021917,2]
[392538359,1761635438754,-500.0,0.00021917,2]
[392538361,1761635438764,-735.45,0.00021917,2]
[392538363,1761635438773,-1758.47,0.00021917,2]
[392538365,1761635438786,-500.0,0.00021917,2]
[392538367,1761635438796,-500.0,0.00021917,2]
[392538369,1761635438805,-500.0,0.00021917,2]
[392538371,1761635438815,-3138.8,0.00021917,2]
[392538373,1761635438826,-769.55,0.00021917,2]
[392538375,1761635438835,-563.84,0.00021917,2]
[392538377,1761635438844,-500.0,0.00021917,2]
[392538379,1761635438854,-500.0,0.00021917,2]
[392538381,1761635438863,-493.33437783,0.00021917,2]
[392538383,1761635438874,-500.0,0.00021917,2]
[392538385,1761635438883,-500.0,0.00021917,2]
[392538386,1761635438892,-500.0,0.00021917,2]
[392538388,1761635438902,-500.0,0.00021917,2]
[392538390,1761635438912,-909.78,0.00021917,2]
[392538392,1761635438921,-500.0,0.00021917,2]
[392538394,1761635438931,-1183.88,0.00021917,2]
[392538396,1761635438940,-1758.37,0.00021917,2]
[392538398,1761635438948,-2123.15,0.00021917,2]
[392538400,1761635438957,-648.65007723,0.00021917,2]
[392538402,1761635438967,-500.0,0.00021917,2]
[392538404,1761635438976,-936.49,0.00021917,2]
[392538406,1761635438986,-500.0,0.00021917,2]
[392538408,1761635438995,-1564.89,0.00021917,2]
[392538410,1761635439004,-500.0,0.00021917,2]
[392538412,1761635439013,-500.0,0.00021917,2]
[392538413,1761635439022,-500.0,0.00021917,2]
[392538414,1761635439034,-500.0,0.00021917,2]
[392538415,1761635439043,-2326.74,0.00021917,2]
[392538416,1761635439056,-500.0,0.00021917,2]
[392538417,1761635439065,-751.97,0.00021917,2]
[392538418,1761635439075,-862.57,0.00021917,2]
[392538419,1761635439084,-500.0,0.00021917,2]
[392538420,1761635439093,-500.0,0.00021917,2]
[392538421,1761635439103,-500.0,0.00021917,2]
[392538422,1761635439112,-500.0,0.00021917,2]
[392538423,1761635439121,-500.0,0.00021917,2]
[392538424,1761635439131,-500.0,0.00021917,2]
[392538425,1761635439141,-500.0,0.00021917,2]
[392538426,1761635439150,-500.0,0.00021917,2]
[392538427,1761635439159,-2586.64,0.00021917,2]
[392538428,1761635439168,-500.0,0.00021917,2]
[392538429,1761635439178,-1388.81,0.00021917,2]
[392538430,1761635439187,-1962.72,0.00021917,2]
[392538431,1761635439196,-1111.55,0.00021917,2]
[392538432,1761635439206,-846.75,0.00021917,2]
[392538433,1761635439215,-500.0,0.00021917,2]
[392538434,1761635439224,-500.0,0.00021917,2]
[392538435,1761635439234,-863.32,0.00021917,2]
[392538436,1761635439243,-540.08,0.00021917,2]
[392538437,1761635439252,-4371.88,0.00021917,2]
[392538438,1761635439261,-500.0,0.00021917,2]
[392538439,1761635439271,-2240.96,0.00021917,2]
[392538440,1761635439281,-500.0,0.00021917,2]
[392538441,1761635439290,-1160.89,0.00021917,2]
[392538442,1761635439300,-5928.57,0.00021917,2]
[392538443,1761635439309,-2323.44,0.00021917,2]
[392538444,1761635439319,-1791.62,0.00021917,2]
[392538445,1761635439329,-2621.46,0.00021917,2]
[392538446,1761635439339,-500.0,0.00021917,2]
[392538447,1761635439348,-500.0,0.00021917,2]
[392538448,1761635439357,-631.85,0.00021917,2]
[392538449,1761635439366,-975.55,0.00021917,2]
[392538450,1761635439376,-500.0,0.00021917,2]
[392538451,1761635439385,-500.0,0.00021917,2]
[392538452,1761635439395,-500.0,0.00021917,2]
[392538453,1761635439405,-500.0,0.00021917,2]
[392538454,1761635439415,-1186.44,0.00021917,2]
[392538455,1761635439424,-2321.63,0.00021917,2]
[392538456,1761635439433,-500.0,0.00021917,2]
[392538457,1761635439443,-936.95,0.00021917,2]
[392538458,1761635439452,-500.0,0.00021917,2]
[392538459,1761635439461,-500.0,0.00021917,2]
[392538460,1761635439471,-2951.94,0.00021917,2]
[392538461,1761635439480,-1024.53,0.00021917,2]
[392538462,1761635439489,-500.0,0.00021917,2]
[392538463,1761635439498,-500.0,0.00021917,2]
[392538464,1761635439507,-1393.7,0.00021917,2]
[392538465,1761635439517,-500.0,0.00021917,2]
[392538466,1761635439529,-500.0,0.00021917,2]
[392538467,1761635439539,-1915.93,0.00021917,2]
[392538468,1761635439548,-569.62,0.00021917,2]
[392538469,1761635439557,-500.0,0.00021917,2]
[392538470,1761635439567,-500.0,0.00021917,2]
[392538471,1761635439577,-715.89,0.00021917,2]
[392538472,1761635439586,-2003.25,0.00021917,2]
[392538473,1761635439596,-500.0,0.00021917,2]
[392538474,1761635439605,-614.29,0.00021917,2]
[392538475,1761635439614,-500.0,0.00021917,2]
[392538476,1761635439624,-500.0,0.00021917,2]
[392538477,1761635439634,-1493.81,0.00021917,2]
[392538478,1761635439644,-500.0,0.00021917,2]
[392538479,1761635439654,-1016.96,0.00021917,2]
[392538480,1761635439665,-637.23,0.00021917,2]
[392538481,1761635439675,-1173.47,0.00021917,2]
[392538482,1761635439684,-500.0,0.00021917,2]
[392538483,1761635439699,-500.0,0.00021917,2]
[392538484,1761635439709,-610.49441842,0.00021917,2]
[392538485,1761635439718,-500.0,0.00021917,2]
[392538486,1761635439728,-1075.02,0.00021917,2]
[392538487,1761635439738,-994.98,0.00021917,2]
[392538488,1761635439748,-500.0,0.00021917,2]
[392538489,1761635439758,-500.0,0.00021917,2]
[392538490,1761635439767,-675.64,0.00021917,2]
[392538491,1761635439780,-1399.5,0.00021917,2]
[392538492,1761635439790,-722.95,0.00021917,2]
[392538493,1761635439799,-3537.59,0.00021917,2]
[392538494,1761635439808,-500.0,0.00021917,2]
[392538495,1761635439818,-500.0,0.00021917,2]
[392538496,1761635439827,-2387.11,0.00021917,2]
[392538497,1761635439838,-500.0,0.00021917,2]
[392538498,1761635439848,-500.0,0.00021917,2]
[392538499,1761635439857,-2131.55,0.00021917,2]
[392538500,1761635439867,-500.0,0.00021917,2]
[392538501,1761635439876,-12061.61,0.00021917,2]
[392538502,1761635439886,-781.37,0.00021917,2]
[392538503,1761635439895,-1649.47,0.00021917,2]
[392538504,1761635439905,-500.0,0.00021917,2]
[392538505,1761635439915,-1002.41,0.00021917,2]
[392538506,1761635439924,-500.0,0.00021917,2]
[392538507,1761635439934,-500.0,0.00021917,2]
[392538508,1761635439943,-500.0,0.00021917,2]
[392538509,1761635439953,-457.70622073,0.00021917,2]
[392538511,1761635439962,-500.0,0.00021917,2]
[392538512,1761635439972,-500.0,0.00021917,2]
[392538513,1761635439982,-500.0,0.00021917,2]
[392538514,1761635439992,-1726.31,0.00021917,2]
[392538515,1761635440002,-686.19,0.00021917,2]
[392538517,1761635440011,-2475.29,0.00021917,2]
[392538518,1761635440020,-1842.19,0.00021917,2]
[392538520,1761635440030,-500.0,0.00021917,2]
[392538522,1761635440040,-188.04952016,0.00021917,2]
[392538524,1761635440050,-500.0,0.00021917,2]
[392538526,1761635440059,-500.0,0.00021917,2]
[392538529,1761635440210,-699.27,0.00021917,2]
[392538531,1761635440239,-641.06057246,0.00021917,2]
[392538533,1761635440249,-1551.56,0.00021917,2]
[392538535,1761635440258,-500.0,0.00021917,2]
[392538537,1761635440267,-529.25,0.00021917,2]
[392538539,1761635440276,-500.0,0.00021917,2]
[392538541,1761635440285,-500.0,0.00021917,2]
[392538543,1761635440294,-229.95725934,0.00021917,2]
[392538545,1761635440304,-2313.89,0.00021917,2]
[392538547,1761635440313,-2035.81,0.00021917,2]
[392538549,1761635440322,-294.38521741,0.00021917,2]
[392538551,1761635440331,-500.0,0.00021917,2]
[392538553,1761635440340,-951.2,0.00021917,2]
[392538555,1761635440350,-500.0,0.00021917,2]
[392538557,1761635440359,-526.13,0.00021917,2]
[392538559,1761635440368,-546.51962608,0.00021917,2]
[392538561,1761635440377,-2014.9,0.00021917,2]
[392538563,1761635440387,-500.0,0.00021917,2]
[392538565,1761635440396,-890.11,0.00021917,2]
[392538567,1761635440405,-3964.38,0.00021917,2]
[392538569,1761635440415,-1023.23,0.00021917,2]
[392538571,1761635440424,-500.0,0.00021917,2]
[392538573,1761635440433,-500.0,0.00021917,2]
[392538575,1761635440442,-500.0,0.00021917,2]
[392538577,1761635440451,-151.0,0.00021917,7]
[392538579,1761635440460,-2909.37,0.00021917,2]
[392538581,1761635440470,-151.0,0.00021917,7]
[392538583,1761635440479,-151.0,0.00021917,7]
[392538585,1761635440488,-500.0,0.00021917,2]
[392538587,1761635440496,-500.0,0.00021917,2]
[392538589,1761635440505,-151.0,0.00021917,7]
[392538591,1761635440514,-151.0,0.00021917,7]
[392538592,1761635440522,-500.0,0.00021917,2]
[392538594,1761635440532,-2874.27,0.00021917,2]
[392538596,1761635440541,-2741.75,0.00021917,2]
[392538598,1761635440550,-500.0,0.00021917,2]
[392538600,1761635440560,-500.0,0.00021917,2]
[392538602,1761635440569,-500.0,0.00021917,2]
[392538604,1761635440578,-1318.04,0.00021917,2]
[392538606,1761635440587,-500.0,0.00021917,2]
[392538608,1761635440596,-500.0,0.00021917,2]
[392538610,1761635440605,-500.0,0.00021917,2]
[392538612,1761635440615,-1545.04,0.00021917,2]
[392538614,1761635440624,-679.39,0.00021917,2]
[392538616,1761635440633,-325.61319786,0.00021917,2]
[392538618,1761635440642,-500.0,0.00021917,2]
[392538620,1761635440651,-609.24,0.00021917,2]
[392538622,1761635440660,-3883.37,0.00021917,2]
[392538624,1761635440669,-381.79210679,0.00021917,2]
[392538626,1761635440678,-1588.65,0.00021917,2]
[392538628,1761635440687,-500.0,0.00021917,2]
[392538630,1761635440696,-500.0,0.00021917,2]
[392538632,1761635440705,-477.14071667,0.00021917,2]
[392538634,1761635440715,-500.0,0.00021917,2]
[392538636,1761635440723,-500.0,0.00021917,2]
[392538638,1761635440734,-610.14959575,0.00021917,2]
[392538640,1761635440743,-500.0,0.00021917,2]
[392538641,1761635440752,-500.0,0.00021917,2]
[392538642,1761635440762,-5972.25,0.00021917,2]
[392538643,1761635440770,-500.0,0.00021917,2]
[392538644,1761635440780,-500.0,0.00021917,2]
[392538645,1761635440791,-500.0,0.00021917,2]
[392538646,1761635440800,-2782.69,0.00021917,2]
[392538647,1761635440810,-1281.17,0.00021917,2]
[392538648,1761635440819,-500.0,0.00021917,2]
[392538649,1761635440829,-500.0,0.00021917,2]
[392538650,1761635440839,-500.0,0.00021917,2]
[392538651,1761635440848,-500.0,0.00021917,2]
[392538652,1761635440857,-500.0,0.00021917,2]
[392538653,1761635440866,-551.02,0.00021917,2]
[392538654,1761635440876,-500.0,0.00021917,2]
[392538655,1761635440885,-786.84,0.00021917,2]
[392538656,1761635440894,-750.43,0.00021917,2]
[392538657,1761635440904,-500.0,0.00021917,2]
[392538658,1761635440914,-500.0,0.00021917,2]
[392538659,1761635440923,-500.0,0.00021917,2]
[392538660,1761635440932,-3198.47,0.00021917,2]
[392538662,1761635440941,-500.0,0.00021917,2]
[392538663,1761635440950,-500.0,0.00021917,2]
[392538664,1761635440959,-858.33,0.00021917,2]
[392538665,1761635440968,-683.28,0.00021917,2]
[392538666,1761635440977,-1378.5,0.00021917,2]
[392538667,1761635440986,-799.95,0.00021917,2]
[392538668,1761635440995,-2587.33,0.00021917,2]
[392538669,1761635441005,-500.0,0.00021917,2]
[392538670,1761635441014,-543.47,0.00021917,2]
[392538671,1761635441023,-500.0,0.00021917,2]
[392538672,1761635441034,-500.0,0.00021917,2]
[392538673,1761635441043,-3561.46,0.00021917,2]
[392538674,1761635441057,-500.0,0.00021917,2]
[392538675,1761635441066,-1913.07,0.00021917,2]
[392538676,1761635441075,-500.0,0.00021917,2]
[392538677,1761635441084,-649.31,0.00021917,2]
[392538678,1761635441095,-3355.11,0.00021917,2]
[392538679,1761635441105,-1884.93,0.00021917,2]
[392538680,1761635441114,-860.49,0.00021917,2]
[392538681,1761635441124,-4199.74,0.00021917,2]
[392538682,1761635441133,-664.29,0.00021917,2]
[392538683,1761635441144,-1000.0,0.00021917,2]
[392538684,1761635441153,-1000.0,0.00021917,2]
[392538685,1761635441163,-1000.0,0.00021917,2]
[392538686,1761635441172,-1833.01,0.00021917,2]
[392538687,1761635441182,-1000.0,0.00021917,2]
[392538688,1761635441191,-500.0,0.00021917,2]
[392538689,1761635441200,-1000.0,0.00021917,2]
[392538690,1761635441209,-500.0,0.00021917,2]
[392538691,1761635441219,-500.0,0.00021917,2]
[392538692,1761635441228,-1000.0,0.00021917,2]
[392538693,1761635441237,-1000.0,0.00021917,2]
[392538694,1761635441246,-1000.0,0.00021917,2]
[392538695,1761635441256,-609.22,0.00021917,2]
[392538696,1761635441266,-1000.0,0.00021917,2]
[392538697,1761635441275,-1063.109292,0.00021917,2]
[392538698,1761635441284,-500.0,0.00021917,2]
[392538699,1761635441293,-899.79,0.00021917,2]
[392538700,1761635441302,-935.9,0.00021917,2]
[392538701,1761635441311,-500.0,0.00021917,2]
[392538702,1761635441321,-500.0,0.00021917,2]
[392538703,1761635441330,-500.0,0.00021917,2]
[392538704,1761635441339,-208.98001691,0.00021917,2]
[392538705,1761635441348,-1821.5,0.00021917,2]
[392538706,1761635441358,-248.89073756,0.00021917,2]
[392538707,1761635441367,-500.0,0.00021917,2]
[392538708,1761635441376,-902.01,0.00021917,2]
[392538709,1761635441385,-831.98,0.00021917,2]
[392538710,1761635441394,-500.0,0.00021917,2]
[392538711,1761635441404,-500.0,0.00021917,2]
[392538712,1761635441413,-500.0,0.00021917,2]
[392538713,1761635441422,-500.0,0.00021917,2]
[392538714,1761635441431,-153.0,0.00021918,2]
[392538715,1761635441441,-153.0,0.00021918,2]
[392538716,1761635441450,-153.0,0.00021918,2]
[392538717,1761635441459,-153.0,0.00021918,2]
[392538718,1761635441468,-153.0,0.00021918,2]
[392538719,1761635441477,-153.0,0.00021918,2]
[392538720,1761635441486,-153.0,0.00021918,2]
[392538721,1761635441496,-153.0,0.00021918,2]
[392538722,1761635441505,-153.0,0.00021918,2]
[392538723,1761635441514,-153.0,0.00021918,2]
[392538724,1761635441525,-153.0,0.00021918,2]
[392538725,1761635441534,-153.0,0.00021918,2]
[392538726,1761635441544,-153.0,0.00021918,2]
[392538727,1761635441554,-153.0,0.00021918,2]
[392538728,1761635441563,-153.0,0.00021918,2]
[392538729,1761635441572,-153.0,0.00021918,2]
[392538730,1761635441582,-153.0,0.00021918,2]
[392538731,1761635441591,-153.0,0.00021918,2]
[392538732,1761635441600,-153.0,0.00021918,2]
[392538733,1761635441609,-153.0,0.00021918,2]
[392538734,1761635441620,-500.0,0.00021918,2]
[392538735,1761635441629,-500.0,0.00021918,2]
[392538736,1761635441639,-12500.0,0.00021973,7]
[392538737,1761635441648,-4901.82206799,0.00021973,7]
[392538738,1761635441658,-12500.0,0.00021973,7]
[392538739,1761635441667,-593.76924566,0.00021993,2]
[392538740,1761635441676,-500.51,0.00022,3]
[392538741,1761635441685,-59877.03,0.00022,7]
[392538742,1761635441694,-153.914709,0.00022,7]
[392538743,1761635441704,-153.914709,0.00022,5]
[392538744,1761635441713,-13446.8393957,0.00022013,2]
[392538745,1761635441722,-720.0,0.00022018,20]
[392538746,1761635441731,-10004.61666972,0.00022091,2]
[392538747,1761635441741,-188.0,0.00022137,6]
[392538748,1761635441751,-633.0,0.00022152,2]
[392538749,1761635441760,-984.0,0.00022152,2]
[392538750,1761635441769,-2167.0,0.00022152,2]
[392538751,1761635441778,-500.0,0.00022173,2]
[392538752,1761635441787,-500.0,0.00022173,2]
[392538753,1761635441797,-500.0,0.00022173,2]
[392538754,1761635441807,-424.55965439,0.00022173,2]
[392538755,1761635441816,-500.0,0.00022173,2]
[392538756,1761635441825,-500.0,0.00022173,2]
[392538757,1761635441834,-500.0,0.00022173,2]
[392538758,1761635441843,-500.0,0.00022173,2]
[392538759,1761635441852,-500.0,0.00022173,2]
[392538760,1761635441862,-500.0,0.00022173,2]
[392538761,1761635441871,-500.0,0.00022173,2]
[392538762,1761635441880,-500.0,0.00022173,2]
[392538763,1761635441889,-500.0,0.00022173,2]
[392538764,1761635441900,-500.0,0.00022173,2]
[392538765,1761635441910,-630.24343041,0.00022173,2]
[392538766,1761635441919,-500.0,0.00022173,2]
[392538767,1761635441928,-500.0,0.00022173,2]
[392538768,1761635441937,-500.0,0.00022173,2]
[392538769,1761635441948,-418.68037787,0.00022173,2]
[392538770,1761635441959,-500.0,0.00022173,2]
[392538771,1761635441969,-500.0,0.00022173,2]
[392538772,1761635441979,-500.0,0.00022173,2]
[392538773,1761635441988,-500.0,0.00022173,2]
[392538774,1761635441999,-500.0,0.00022173,2]
[392538775,1761635442010,-500.0,0.00022173,2]
[392538776,1761635442021,-500.0,0.00022173,2]
[392538777,1761635442031,-500.0,0.00022173,2]
[392538778,1761635442040,-500.0,0.00022173,2]
[392538779,1761635442049,-500.0,0.00022173,2]
[392538780,1761635442058,-500.0,0.00022173,2]
[392538781,1761635442071,-500.0,0.00022173,2]
[392538782,1761635442081,-500.0,0.00022173,2]
[392538783,1761635442091,-500.0,0.00022173,2]
[392538784,1761635442100,-500.0,0.00022173,2]
[392538785,1761635442109,-441.34406098,0.00022173,2]
[392538786,1761635442118,-500.0,0.00022173,2]
[392538787,1761635442128,-500.0,0.00022173,2]
[392538788,1761635442137,-500.0,0.00022173,2]
[392538789,1761635442146,-500.0,0.00022173,2]
[392538790,1761635442155,-500.0,0.00022173,2]
[392538791,1761635442165,-531.11332048,0.00022173,2]
[392538792,1761635442174,-500.0,0.00022173,2]
[392538793,1761635442183,-500.0,0.00022173,2]
[392538794,1761635442192,-500.0,0.00022173,2]
[392538795,1761635442202,-500.0,0.00022173,2]
[392538796,1761635442211,-500.0,0.00022173,2]
[392538797,1761635442220,-500.0,0.00022173,2]
[392538798,1761635442229,-500.0,0.00022173,2]
[392538799,1761635442238,-500.0,0.00022173,2]
[392538800,1761635442247,-500.0,0.00022173,2]
[392538801,1761635442256,-500.0,0.00022173,2]
[392538802,1761635442265,-500.0,0.00022173,2]
[392538803,1761635442274,-500.0,0.00022173,2]
[392538804,1761635442285,-500.0,0.00022191,2]
[392538805,1761635442294,-500.0,0.00022191,2]
[392538806,1761635442303,-500.0,0.00022191,2]
[392538807,1761635442313,-500.0,0.00022191,2]
[392538808,1761635442322,-153.914709,0.00022191,2]
[392538809,1761635442331,-500.0,0.00022191,2]
[392538810,1761635442340,-429.11199735,0.00022191,2]
[392538811,1761635442349,-500.0,0.00022191,2]
[392538812,1761635442358,-500.0,0.00022191,2]
[392538813,1761635442367,-500.0,0.00022191,2]
[392538814,1761635442376,-500.0,0.00022191,2]
[392538815,1761635442387,-500.0,0.00022191,2]
[392538816,1761635442398,-1690.05,0.00022191,2]
[392538817,1761635442408,-500.0,0.00022191,2]
[392538818,1761635442420,-500.0,0.00022191,2]
[392538819,1761635442429,-500.0,0.00022191,2]
[392538820,1761635442439,-500.0,0.00022191,2]
[392538821,1761635442448,-500.0,0.00022191,2]
[392538822,1761635442460,-500.0,0.00022191,2]
[392538823,1761635442469,-500.0,0.00022191,2]
[392538824,1761635442478,-715.75,0.00022191,2]
[392538825,1761635442487,-500.0,0.00022191,2]
[392538826,1761635442496,-500.0,0.00022191,2]
[392538827,1761635442507,-500.0,0.00022191,2]
[392538828,1761635442519,-500.0,0.00022191,2]
[392538829,1761635442529,-603.19,0.00022191,2]
[392538830,1761635442538,-500.0,0.00022191,2]
[392538831,1761635442547,-500.0,0.00022191,2]
[392538832,1761635442556,-1127.61,0.00022191,2]
[392538833,1761635442565,-530.38,0.00022191,2]
[392538834,1761635442574,-500.0,0.00022191,2]
[392538835,1761635442584,-500.0,0.00022191,2]
[392538836,1761635442594,-500.0,0.00022191,2]
[392538837,1761635442604,-634.37,0.00022191,2]
[392538838,1761635442614,-500.0,0.00022191,2]
[392538839,1761635442624,-500.0,0.00022191,2]
[392538840,1761635442633,-500.0,0.00022191,2]
[392538841,1761635442643,-500.0,0.00022191,2]
[392538842,1761635442652,-500.0,0.00022191,2]
[392538843,1761635442662,-256.11564266,0.00022191,2]
[392538844,1761635442671,-1000.0,0.00022191,2]
[392538845,1761635442680,-500.0,0.00022191,2]